[Event "*** Titled Tuesday Blitz"]
[Site "Chess.com"]
[Date "2020.11.10"]
[Round "9"]
[White "Guenplen"]
[Black "BAS8892"]
[Result "0-1"]
[WhiteElo "2872"]
[BlackElo "2749"]
[TimeControl "180+1"]
[EndTime "11:53:11 PST"]
[Termination "BAS8892 won on time"]

1. d4 {[%clk 0:03:00.9]} 1... Nf6 {[%clk 0:02:59.1]} 2. Bf4 {[%clk 0:03:01]}
2... d5 {[%clk 0:02:58.3]} 3. e3 {[%clk 0:03:01.3]} 3... e6 {[%clk 0:02:58.6]}
4. Nd2 {[%clk 0:03:00.9]} 4... Bd6 {[%clk 0:02:58.3]} 5. Bg3 {[%clk 0:03:00.4]}
5... O-O {[%clk 0:02:57.9]} 6. Ngf3 {[%clk 0:03:00.7]} 6... c5 {[%clk
0:02:57.9]} 7. c3 {[%clk 0:03:00.6]} 7... Qc7 {[%clk 0:02:57.8]} 8. dxc5 {[%clk
0:03:00.4]} 8... Qxc5 {[%clk 0:02:57.8]} 9. Rc1 {[%clk 0:03:00.4]} 9... Bxg3
{[%clk 0:02:54.1]} 10. hxg3 {[%clk 0:03:01.3]} 10... Nc6 {[%clk 0:02:53.8]} 11.
c4 {[%clk 0:02:54.9]} 11... d4 {[%clk 0:02:51.3]} 12. exd4 {[%clk 0:02:28.9]}
12... Nxd4 {[%clk 0:02:50.7]} 13. Nxd4 {[%clk 0:02:29.8]} 13... Qxd4 {[%clk
0:02:50.6]} 14. Qc2 {[%clk 0:02:24]} 14... e5 {[%clk 0:02:34.2]} 15. Be2 {[%clk
0:02:13.2]} 15... Rd8 {[%clk 0:02:24.9]} 16. Nb3 {[%clk 0:02:07.2]} 16... Qb6
{[%clk 0:02:13.4]} 17. O-O {[%clk 0:02:00.4]} 17... Be6 {[%clk 0:02:13]} 18. c5
{[%clk 0:01:58.5]} 18... Qb4 {[%clk 0:02:09.9]} 19. Bc4 {[%clk 0:01:50.6]} 19...
Bxc4 {[%clk 0:02:03.9]} 20. Qxc4 {[%clk 0:01:51.5]} 20... a5 {[%clk 0:02:01.7]}
21. a3 {[%clk 0:01:24.1]} 21... Qxc4 {[%clk 0:02:01.1]} 22. Rxc4 {[%clk
0:01:25]} 22... a4 {[%clk 0:02:01.4]} 23. Na1 {[%clk 0:01:19.3]} 23... h5 {[%clk
0:01:49.4]} 24. Nc2 {[%clk 0:01:16.6]} 24... Rd2 {[%clk 0:01:47.3]} 25. Ne3
{[%clk 0:00:34.5]} 25... Rxb2 {[%clk 0:01:46.2]} 26. c6 {[%clk 0:00:35]} 26...
bxc6 {[%clk 0:01:42.4]} 27. Rxc6 {[%clk 0:00:35.9]} 27... Rb3 {[%clk 0:01:39.2]}
28. Ra1 {[%clk 0:00:33.9]} 28... Ne4 {[%clk 0:01:31.3]} 29. Rc4 {[%clk
0:00:31.7]} 29... Nc3 {[%clk 0:01:27.8]} 30. Rc5 {[%clk 0:00:26.6]} 30... Nb5
{[%clk 0:01:20]} 31. Rxe5 {[%clk 0:00:24.7]} 31... Nxa3 {[%clk 0:01:12.8]} 32.
Rxh5 {[%clk 0:00:21]} 32... Rb1+ {[%clk 0:01:11.1]} 33. Rxb1 {[%clk 0:00:19.4]}
33... Nxb1 {[%clk 0:01:11.6]} 34. Rb5 {[%clk 0:00:12.6]} 34... Nc3 {[%clk
0:01:10.9]} 35. Rc5 {[%clk 0:00:08.2]} 35... Ne4 {[%clk 0:01:05.6]} 36. Rc4
{[%clk 0:00:07.5]} 36... Nd2 {[%clk 0:01:05.1]} 37. Rc2 {[%clk 0:00:07.4]} 37...
Nb3 {[%clk 0:01:03.4]} 38. Ra2 {[%clk 0:00:07.3]} 38... Nc5 {[%clk 0:01:00.4]}
39. Rc2 {[%clk 0:00:05.4]} 39... Ne4 {[%clk 0:00:57.3]} 40. Ra2 {[%clk
0:00:05.1]} 40... Kf8 {[%clk 0:00:50.2]} 41. g4 {[%clk 0:00:05]} 41... Ke7
{[%clk 0:00:49.8]} 42. f3 {[%clk 0:00:05]} 42... Nc3 {[%clk 0:00:49.2]} 43. Ra3
{[%clk 0:00:05.3]} 43... Nb5 {[%clk 0:00:48.8]} 44. Ra1 {[%clk 0:00:05.4]} 44...
a3 {[%clk 0:00:48.9]} 45. Nc2 {[%clk 0:00:05]} 45... Kd6 {[%clk 0:00:47.3]} 46.
Kh2 {[%clk 0:00:03]} 46... Kc5 {[%clk 0:00:47.2]} 47. Nxa3 {[%clk 0:00:02.6]}
47... Rxa3 {[%clk 0:00:45.7]} 48. Re1 {[%clk 0:00:03.1]} 48... Kd6 {[%clk
0:00:43.8]} 49. Kg3 {[%clk 0:00:02.7]} 49... Nd4 {[%clk 0:00:43.7]} 50. Re8
{[%clk 0:00:02.9]} 50... Ne6 {[%clk 0:00:43.4]} 51. Rb8 {[%clk 0:00:02.7]} 51...
g5 {[%clk 0:00:42.7]} 52. Rb6+ {[%clk 0:00:02.8]} 52... Ke5 {[%clk 0:00:42.4]}
53. Rb2 {[%clk 0:00:03.7]} 53... Rc3 {[%clk 0:00:40.7]} 54. Re2+ {[%clk
0:00:03.7]} 54... Kf6 {[%clk 0:00:40.1]} 55. Ra2 {[%clk 0:00:04.6]} 55... Nd4
{[%clk 0:00:39]} 56. Ra6+ {[%clk 0:00:04.6]} 56... Kg7 {[%clk 0:00:38.8]} 57.
Ra2 {[%clk 0:00:05.5]} 57... Rc2 {[%clk 0:00:38.2]} 58. Rxc2 {[%clk 0:00:01.9]}
58... Nxc2 {[%clk 0:00:38]} 59. Kf2 {[%clk 0:00:02.8]} 59... Kf6 {[%clk
0:00:37.2]} 60. Ke2 {[%clk 0:00:03.3]} 60... Ke5 {[%clk 0:00:37.2]} 61. g3
{[%clk 0:00:02.7]} 61... Kd4 {[%clk 0:00:34.5]} 62. Kd2 {[%clk 0:00:03.1]} 62...
Ne3 {[%clk 0:00:33.7]} 63. Ke2 {[%clk 0:00:03.5]} 63... Nd5 {[%clk 0:00:33.4]}
64. Kd2 {[%clk 0:00:03.9]} 64... Nc3 {[%clk 0:00:33.2]} 65. f4 {[%clk
0:00:03.1]} 65... Ne4+ {[%clk 0:00:33]} 66. Ke2 {[%clk 0:00:02.6]} 66... Nxg3+
{[%clk 0:00:32.7]} 67. Kf3 {[%clk 0:00:02.9]} 67... Ne4 {[%clk 0:00:31.1]} 68.
fxg5 {[%clk 0:00:03.3]} 68... Ke5 {[%clk 0:00:30]} 0-1

[Event "*** Titled Tuesday Blitz"]
[Site "Chess.com"]
[Date "2020.11.10"]
[Round "9"]
[White "sara_khm"]
[Black "vladgoncharov"]
[Result "0-1"]
[WhiteElo "2566"]
[BlackElo "2483"]
[TimeControl "180+1"]
[EndTime "11:53:12 PST"]
[Termination "vladgoncharov won by resignation"]

1. d4 {[%clk 0:03:00.3]} 1... Nf6 {[%clk 0:02:59.4]} 2. c4 {[%clk 0:02:59.7]}
2... e6 {[%clk 0:02:57.9]} 3. Nf3 {[%clk 0:02:59.7]} 3... c5 {[%clk 0:02:58]} 4.
d5 {[%clk 0:02:59]} 4... exd5 {[%clk 0:02:58.3]} 5. cxd5 {[%clk 0:02:59.3]} 5...
d6 {[%clk 0:02:58.9]} 6. Nc3 {[%clk 0:02:59.3]} 6... g6 {[%clk 0:02:59.1]} 7.
Nd2 {[%clk 0:02:56]} 7... Nbd7 {[%clk 0:02:58]} 8. e4 {[%clk 0:02:56]} 8... Bg7
{[%clk 0:02:57.3]} 9. Be2 {[%clk 0:02:56.3]} 9... O-O {[%clk 0:02:57]} 10. O-O
{[%clk 0:02:56.4]} 10... Re8 {[%clk 0:02:56.9]} 11. a4 {[%clk 0:02:52.4]} 11...
a6 {[%clk 0:02:44.2]} 12. f3 {[%clk 0:02:51.5]} 12... b6 {[%clk 0:02:43]} 13.
Kh1 {[%clk 0:02:50.9]} 13... Bb7 {[%clk 0:02:40.5]} 14. Nc4 {[%clk 0:02:46.9]}
14... Ne5 {[%clk 0:02:40.1]} 15. Na3 {[%clk 0:02:46.5]} 15... h5 {[%clk
0:02:34.7]} 16. f4 {[%clk 0:02:41]} 16... Neg4 {[%clk 0:02:34.6]} 17. h3 {[%clk
0:02:40.6]} 17... Nxe4 {[%clk 0:02:32.2]} 18. Nxe4 {[%clk 0:02:23.9]} 18... Rxe4
{[%clk 0:02:29.4]} 19. Bf3 {[%clk 0:02:22.9]} 19... Ne3 {[%clk 0:02:04.4]} 20.
Bxe3 {[%clk 0:02:13.7]} 20... Rxe3 {[%clk 0:02:03.9]} 21. Nc4 {[%clk 0:02:13.8]}
21... Re8 {[%clk 0:01:58.4]} 22. Qb3 {[%clk 0:02:11.4]} 22... Rb8 {[%clk
0:01:43.7]} 23. Qxb6 {[%clk 0:01:50.3]} 23... Qxb6 {[%clk 0:01:42.9]} 24. Nxb6
{[%clk 0:01:50.3]} 24... Bc8 {[%clk 0:01:42.7]} 25. Nc4 {[%clk 0:01:46.4]} 25...
Rd8 {[%clk 0:01:42.4]} 26. Rfe1 {[%clk 0:01:20.3]} 26... Rb4 {[%clk 0:01:34.6]}
27. Nxd6 {[%clk 0:01:20]} 27... Bxh3 {[%clk 0:01:05.2]} 28. Ne4 {[%clk
0:01:18.9]} 28... Bf5 {[%clk 0:01:01.6]} 29. Nxc5 {[%clk 0:01:18.4]} 29... Rxb2
{[%clk 0:01:00.5]} 30. Rad1 {[%clk 0:01:11.3]} 30... Rd6 {[%clk 0:00:56.9]} 31.
Re8+ {[%clk 0:01:07.8]} 31... Bf8 {[%clk 0:00:56.9]} 32. Ra8 {[%clk 0:01:03.2]}
32... Kg7 {[%clk 0:00:40.7]} 33. Nxa6 {[%clk 0:00:50.3]} 33... Be7 {[%clk
0:00:32.9]} 34. Nc7 {[%clk 0:00:48.4]} 34... Rd7 {[%clk 0:00:15.5]} 35. d6
{[%clk 0:00:45.8]} 35... Bh4 {[%clk 0:00:15.2]} 36. Bc6 {[%clk 0:00:40.1]} 36...
Bg3 {[%clk 0:00:14.7]} 37. Bxd7 {[%clk 0:00:39.4]} 37... Bxd7 {[%clk 0:00:14.6]}
38. Ne8+ {[%clk 0:00:39.6]} 38... Kh6 {[%clk 0:00:12.6]} 39. Rg1 {[%clk
0:00:19.3]} 39... Rd2 {[%clk 0:00:05.8]} 40. Rd8 {[%clk 0:00:18.6]} 40... Bxe8
{[%clk 0:00:04.7]} 41. Rxe8 {[%clk 0:00:18.8]} 41... Rxd6 {[%clk 0:00:05.3]} 42.
Re4 {[%clk 0:00:19.3]} 42... Ra6 {[%clk 0:00:04.9]} 43. Rb1 {[%clk 0:00:19.2]}
43... f5 {[%clk 0:00:05.1]} 44. Reb4 {[%clk 0:00:18.4]} 44... h4 {[%clk
0:00:05.4]} 45. Kg1 {[%clk 0:00:17.9]} 45... Kh5 {[%clk 0:00:04.4]} 46. Rc4
{[%clk 0:00:17.3]} 46... Kg4 {[%clk 0:00:04.3]} 47. Rb5 {[%clk 0:00:14.9]} 47...
Rd6 {[%clk 0:00:04]} 48. Rb1 {[%clk 0:00:13.9]} 48... h3 {[%clk 0:00:03.8]} 49.
gxh3+ {[%clk 0:00:13.5]} 49... Kxh3 {[%clk 0:00:04.5]} 50. a5 {[%clk 0:00:14]}
50... Kg4 {[%clk 0:00:04.6]} 51. Ra4 {[%clk 0:00:13.7]} 51... Rd2 {[%clk
0:00:04.9]} 52. a6 {[%clk 0:00:13.5]} 52... Kh3 {[%clk 0:00:05.1]} 53. a7 {[%clk
0:00:12.7]} 53... Rg2+ {[%clk 0:00:05.2]} 54. Kf1 {[%clk 0:00:12.7]} 54... Rf2+
{[%clk 0:00:05.4]} 55. Ke1 {[%clk 0:00:12.3]} 55... Rxf4+ {[%clk 0:00:05.5]} 56.
Ke2 {[%clk 0:00:12.1]} 56... Rxa4 {[%clk 0:00:06.4]} 57. Rh1+ {[%clk 0:00:11.7]}
57... Kg4 {[%clk 0:00:06]} 58. Rh7 {[%clk 0:00:12.2]} 58... f4 {[%clk
0:00:05.9]} 59. Kd3 {[%clk 0:00:13.1]} 59... f3 {[%clk 0:00:06.1]} 60. Kc3
{[%clk 0:00:13.2]} 60... f2 {[%clk 0:00:06.1]} 61. Rf7 {[%clk 0:00:12.3]} 61...
Rxa7 {[%clk 0:00:07]} 0-1

[Event "*** Titled Tuesday Blitz"]
[Site "Chess.com"]
[Date "2020.11.10"]
[Round "9"]
[White "paulrusan"]
[Black "Bastiandash"]
[Result "0-1"]
[WhiteElo "2222"]
[BlackElo "2363"]
[TimeControl "180+1"]
[EndTime "11:53:12 PST"]
[Termination "Bastiandash won on time"]

1. e4 {[%clk 0:03:00.9]} 1... c6 {[%clk 0:02:59.5]} 2. d4 {[%clk 0:03:00.6]}
2... d5 {[%clk 0:02:59.1]} 3. f3 {[%clk 0:03:01.1]} 3... dxe4 {[%clk 0:02:55]}
4. fxe4 {[%clk 0:03:01.3]} 4... e5 {[%clk 0:02:54.4]} 5. Nf3 {[%clk 0:03:01.8]}
5... exd4 {[%clk 0:02:53.8]} 6. Bc4 {[%clk 0:03:02.4]} 6... Be7 {[%clk
0:02:30.7]} 7. O-O {[%clk 0:02:48.2]} 7... Nf6 {[%clk 0:02:14.1]} 8. e5 {[%clk
0:02:21]} 8... Nd5 {[%clk 0:02:13.5]} 9. c3 {[%clk 0:02:11.8]} 9... Be6 {[%clk
0:01:47.3]} 10. cxd4 {[%clk 0:02:08.5]} 10... O-O {[%clk 0:01:45.4]} 11. Bb3
{[%clk 0:02:05.8]} 11... Bf5 {[%clk 0:01:36.3]} 12. Nc3 {[%clk 0:02:03.4]} 12...
Na6 {[%clk 0:01:30]} 13. Nxd5 {[%clk 0:01:57.2]} 13... cxd5 {[%clk 0:01:30.9]}
14. Bc2 {[%clk 0:01:44.6]} 14... Bxc2 {[%clk 0:01:30.4]} 15. Qxc2 {[%clk
0:01:44.6]} 15... Rc8 {[%clk 0:01:31.3]} 16. Qb3 {[%clk 0:01:34.9]} 16... Nb4
{[%clk 0:01:15.4]} 17. Bd2 {[%clk 0:01:32.5]} 17... Qb6 {[%clk 0:00:59]} 18.
Rac1 {[%clk 0:01:18.8]} 18... Nc6 {[%clk 0:00:48.3]} 19. Qxb6 {[%clk 0:01:16.9]}
19... axb6 {[%clk 0:00:48.9]} 20. Bc3 {[%clk 0:01:10.3]} 20... f6 {[%clk
0:00:47.7]} 21. Rce1 {[%clk 0:01:01.8]} 21... Rfe8 {[%clk 0:00:45.6]} 22. Re2
{[%clk 0:00:51.7]} 22... fxe5 {[%clk 0:00:44.6]} 23. Nxe5 {[%clk 0:00:51.5]}
23... Bf6 {[%clk 0:00:43.9]} 24. Rfe1 {[%clk 0:00:45.2]} 24... Bxe5 {[%clk
0:00:40.8]} 25. dxe5 {[%clk 0:00:45.3]} 25... d4 {[%clk 0:00:41.7]} 26. Bd2
{[%clk 0:00:45.1]} 26... Re6 {[%clk 0:00:40.8]} 27. Re4 {[%clk 0:00:40.9]} 27...
Rce8 {[%clk 0:00:40.7]} 28. Bf4 {[%clk 0:00:40.7]} 28... Kf7 {[%clk 0:00:35]}
29. b4 {[%clk 0:00:37.4]} 29... b5 {[%clk 0:00:34.5]} 30. a3 {[%clk 0:00:35.8]}
30... Ra8 {[%clk 0:00:33.6]} 31. Bc1 {[%clk 0:00:35.5]} 31... Ke7 {[%clk
0:00:29.6]} 32. Bb2 {[%clk 0:00:35.4]} 32... Rd8 {[%clk 0:00:28.2]} 33. Rd1
{[%clk 0:00:34.7]} 33... Rd5 {[%clk 0:00:10.6]} 34. Kf2 {[%clk 0:00:29.2]} 34...
Rexe5 {[%clk 0:00:07]} 35. Rxe5+ {[%clk 0:00:29]} 35... Rxe5 {[%clk 0:00:07.4]}
36. Bxd4 {[%clk 0:00:27.4]} 36... Rf5+ {[%clk 0:00:06.9]} 37. Ke3 {[%clk
0:00:26.1]} 37... g6 {[%clk 0:00:06]} 38. Bc5+ {[%clk 0:00:24.7]} 38... Ke8
{[%clk 0:00:05.9]} 39. g4 {[%clk 0:00:21.3]} 39... Re5+ {[%clk 0:00:06.2]} 40.
Kf4 {[%clk 0:00:21]} 40... Re6 {[%clk 0:00:06.7]} 41. h4 {[%clk 0:00:13.1]}
41... h6 {[%clk 0:00:06.9]} 42. Rd6 {[%clk 0:00:11.6]} 42... Rxd6 {[%clk
0:00:04.3]} 43. Bxd6 {[%clk 0:00:11.8]} 43... Kf7 {[%clk 0:00:04.3]} 44. Ke4
{[%clk 0:00:09.4]} 44... Ke6 {[%clk 0:00:04.3]} 45. Bf8 {[%clk 0:00:09.3]} 45...
h5 {[%clk 0:00:04.9]} 46. gxh5 {[%clk 0:00:09.5]} 46... gxh5 {[%clk 0:00:05.8]}
47. Kf4 {[%clk 0:00:09.7]} 47... Kf6 {[%clk 0:00:05.4]} 48. Bc5 {[%clk
0:00:06.7]} 48... Nd8 {[%clk 0:00:03.6]} 49. Bd4+ {[%clk 0:00:06.5]} 49... Kg6
{[%clk 0:00:04]} 50. Ke5 {[%clk 0:00:06.9]} 50... Nc6+ {[%clk 0:00:04.6]} 51.
Kd5 {[%clk 0:00:06.9]} 51... Kf5 {[%clk 0:00:05.1]} 52. Bc3 {[%clk 0:00:05.2]}
52... Kg4 {[%clk 0:00:05.1]} 53. Kc5 {[%clk 0:00:05.5]} 53... Kxh4 {[%clk
0:00:03.8]} 54. Kb6 {[%clk 0:00:05.5]} 54... Kg4 {[%clk 0:00:03.6]} 55. Kxb7
{[%clk 0:00:05.8]} 55... Ne7 {[%clk 0:00:04]} 56. Kb6 {[%clk 0:00:03.9]} 56...
Nd5+ {[%clk 0:00:03.9]} 57. Kxb5 {[%clk 0:00:03.9]} 57... Nxc3+ {[%clk
0:00:04.8]} 58. Kc4 {[%clk 0:00:02.3]} 58... h4 {[%clk 0:00:05.2]} 59. Kxc3
{[%clk 0:00:01.4]} 59... h3 {[%clk 0:00:05.9]} 0-1

[Event "*** Titled Tuesday Blitz"]
[Site "Chess.com"]
[Date "2020.11.10"]
[Round "9"]
[White "bazar-wokzal"]
[Black "Chernov_Mikhail"]
[Result "1-0"]
[WhiteElo "2506"]
[BlackElo "2347"]
[TimeControl "180+1"]
[EndTime "11:53:18 PST"]
[Termination "bazar-wokzal won on time"]

1. e4 {[%clk 0:03:00.9]} 1... d6 {[%clk 0:02:50.5]} 2. f4 {[%clk 0:03:00.6]}
2... c5 {[%clk 0:02:48.2]} 3. Nc3 {[%clk 0:03:00.4]} 3... Nc6 {[%clk 0:02:47.6]}
4. Nf3 {[%clk 0:03:00.3]} 4... g6 {[%clk 0:02:47.3]} 5. d3 {[%clk 0:03:00.1]}
5... Bg7 {[%clk 0:02:47.8]} 6. h3 {[%clk 0:03:00.7]} 6... Nf6 {[%clk 0:02:46]}
7. g4 {[%clk 0:03:01]} 7... Nd7 {[%clk 0:02:41.9]} 8. Bg2 {[%clk 0:03:01.1]}
8... Rb8 {[%clk 0:02:38.1]} 9. O-O {[%clk 0:03:00.3]} 9... O-O {[%clk
0:02:35.3]} 10. Be3 {[%clk 0:02:49.4]} 10... Nd4 {[%clk 0:02:33]} 11. Qd2 {[%clk
0:02:38.5]} 11... b5 {[%clk 0:02:24.3]} 12. Nd1 {[%clk 0:02:35.3]} 12... e6
{[%clk 0:02:18.8]} 13. c3 {[%clk 0:02:25.3]} 13... Nxf3+ {[%clk 0:02:18.5]} 14.
Bxf3 {[%clk 0:02:23.8]} 14... b4 {[%clk 0:02:09.8]} 15. d4 {[%clk 0:02:22.8]}
15... bxc3 {[%clk 0:02:09.3]} 16. bxc3 {[%clk 0:02:22.6]} 16... Qa5 {[%clk
0:01:55.8]} 17. e5 {[%clk 0:01:55.8]} 17... cxd4 {[%clk 0:01:45.7]} 18. cxd4
{[%clk 0:01:55.5]} 18... Qxd2 {[%clk 0:01:45.4]} 19. Bxd2 {[%clk 0:01:55.9]}
19... dxe5 {[%clk 0:01:40]} 20. dxe5 {[%clk 0:01:55]} 20... Bb7 {[%clk
0:01:37.3]} 21. Nc3 {[%clk 0:01:44.7]} 21... Rfc8 {[%clk 0:01:20]} 22. Bxb7
{[%clk 0:01:26.9]} 22... Rxb7 {[%clk 0:01:20.9]} 23. Ne4 {[%clk 0:01:27.2]}
23... Rc2 {[%clk 0:00:52.6]} 24. Rfc1 {[%clk 0:01:22.9]} 24... Rbb2 {[%clk
0:00:46.9]} 25. Rxc2 {[%clk 0:01:22.7]} 25... Rxc2 {[%clk 0:00:47.2]} 26. Rb1
{[%clk 0:01:16]} 26... Nb6 {[%clk 0:00:44.3]} 27. a4 {[%clk 0:01:11.8]} 27...
Bf8 {[%clk 0:00:24.2]} 28. Kf1 {[%clk 0:00:38.2]} 28... Rc4 {[%clk 0:00:20.6]}
29. Nf6+ {[%clk 0:00:38]} 29... Kg7 {[%clk 0:00:20.5]} 30. a5 {[%clk 0:00:37.8]}
30... Nd5 {[%clk 0:00:20.4]} 31. Nxd5 {[%clk 0:00:29]} 31... exd5 {[%clk
0:00:21.3]} 32. Rb7 {[%clk 0:00:29.2]} 32... Rc2 {[%clk 0:00:14.4]} 33. Ke2
{[%clk 0:00:25.7]} 33... Kg8 {[%clk 0:00:11.3]} 34. Kd3 {[%clk 0:00:25.9]} 34...
Ra2 {[%clk 0:00:09.7]} 35. Rxa7 {[%clk 0:00:25.5]} 35... Bc5 {[%clk 0:00:10.3]}
36. Rc7 {[%clk 0:00:22.9]} 36... Ra3+ {[%clk 0:00:09.3]} 37. Kc2 {[%clk
0:00:22]} 37... Bg1 {[%clk 0:00:09.7]} 38. f5 {[%clk 0:00:18.5]} 38... gxf5
{[%clk 0:00:09.2]} 39. gxf5 {[%clk 0:00:18.2]} 39... Rxh3 {[%clk 0:00:10.1]} 40.
f6 {[%clk 0:00:17.5]} 40... h5 {[%clk 0:00:10.2]} 41. a6 {[%clk 0:00:16.2]}
41... Ra3 {[%clk 0:00:09.6]} 42. Rc6 {[%clk 0:00:13.5]} 42... Kh7 {[%clk
0:00:08.5]} 43. e6 {[%clk 0:00:12.8]} 43... fxe6 {[%clk 0:00:08]} 44. Rxe6
{[%clk 0:00:13.7]} 44... Kg6 {[%clk 0:00:07.9]} 45. Bc3 {[%clk 0:00:12.1]} 45...
d4 {[%clk 0:00:06.2]} 46. Bb2 {[%clk 0:00:12.3]} 46... Ra5 {[%clk 0:00:05.2]}
47. Kb3 {[%clk 0:00:12.6]} 47... Kf7 {[%clk 0:00:03.9]} 48. Rd6 {[%clk
0:00:11.1]} 48... Rb5+ {[%clk 0:00:04.2]} 49. Kc2 {[%clk 0:00:09.3]} 49... Rb8
{[%clk 0:00:04.3]} 50. Bc1 {[%clk 0:00:04]} 50... Rc8+ {[%clk 0:00:04.2]} 51.
Kd1 {[%clk 0:00:03.7]} 51... d3 {[%clk 0:00:04]} 52. Bg5 {[%clk 0:00:04.3]}
52... d2 {[%clk 0:00:03.6]} 53. Rxd2 {[%clk 0:00:03.7]} 53... Bc5 {[%clk
0:00:03.8]} 54. Rd5 {[%clk 0:00:03.9]} 54... Bb6 {[%clk 0:00:03.6]} 55. Rd6
{[%clk 0:00:04.1]} 55... Bf2 {[%clk 0:00:02.9]} 56. Rd7+ {[%clk 0:00:04.5]}
56... Kg6 {[%clk 0:00:03.5]} 57. Rg7+ {[%clk 0:00:05]} 57... Kf5 {[%clk
0:00:04]} 58. f7 {[%clk 0:00:05.5]} 58... Rf8 {[%clk 0:00:04.6]} 59. Be7 {[%clk
0:00:05.6]} 1-0

[Event "*** Titled Tuesday Blitz"]
[Site "Chess.com"]
[Date "2020.11.10"]
[Round "9"]
[White "Lupul_Cenusiu"]
[Black "Kavyev_Ruslan"]
[Result "0-1"]
[WhiteElo "2528"]
[BlackElo "2411"]
[TimeControl "180+1"]
[EndTime "11:53:20 PST"]
[Termination "Kavyev_Ruslan won by resignation"]

1. d4 {[%clk 0:03:00.9]} 1... Nf6 {[%clk 0:02:59.1]} 2. Bg5 {[%clk 0:02:58.2]}
2... Ne4 {[%clk 0:02:59.1]} 3. Bf4 {[%clk 0:02:58.2]} 3... c5 {[%clk 0:02:58.6]}
4. d5 {[%clk 0:02:58.5]} 4... Qb6 {[%clk 0:02:56.8]} 5. Qc1 {[%clk 0:02:58.3]}
5... e6 {[%clk 0:02:51.4]} 6. f3 {[%clk 0:02:56.9]} 6... Nf6 {[%clk 0:02:51.3]}
7. e4 {[%clk 0:02:51.2]} 7... exd5 {[%clk 0:02:50.6]} 8. e5 {[%clk 0:02:48.4]}
8... Nh5 {[%clk 0:02:48.3]} 9. Ne2 {[%clk 0:02:37]} 9... d6 {[%clk 0:02:35.9]}
10. Nbc3 {[%clk 0:02:35]} 10... Be6 {[%clk 0:02:30.2]} 11. exd6 {[%clk 0:02:31]}
11... Nxf4 {[%clk 0:02:29.8]} 12. Nxf4 {[%clk 0:02:28.6]} 12... Qxd6 {[%clk
0:02:29.8]} 13. Bb5+ {[%clk 0:02:26.3]} 13... Nc6 {[%clk 0:02:29.4]} 14. O-O
{[%clk 0:02:25.4]} 14... O-O-O {[%clk 0:02:12.4]} 15. Re1 {[%clk 0:02:19.4]}
15... a6 {[%clk 0:01:59.2]} 16. Bf1 {[%clk 0:02:11.8]} 16... Nd4 {[%clk
0:01:56.7]} 17. Nxe6 {[%clk 0:01:57.3]} 17... Nxe6 {[%clk 0:01:56.2]} 18. a4
{[%clk 0:01:55.6]} 18... Be7 {[%clk 0:01:55.8]} 19. a5 {[%clk 0:01:54.1]} 19...
Bg5 {[%clk 0:01:54.9]} 20. Qd1 {[%clk 0:01:53.1]} 20... Rhe8 {[%clk 0:01:53]}
21. Na4 {[%clk 0:01:50.9]} 21... Kb8 {[%clk 0:01:52.9]} 22. Nb6 {[%clk
0:01:46.4]} 22... Nd4 {[%clk 0:01:39.8]} 23. Rxe8 {[%clk 0:01:42.4]} 23... Rxe8
{[%clk 0:01:37.8]} 24. c3 {[%clk 0:01:41.8]} 24... Bf4 {[%clk 0:01:14.9]} 25. g3
{[%clk 0:01:32.5]} 25... Bxg3 {[%clk 0:01:08.3]} 26. cxd4 {[%clk 0:01:31]} 26...
Bxh2+ {[%clk 0:01:07.3]} 27. Kh1 {[%clk 0:01:30.1]} 27... Qh6 {[%clk 0:00:59.1]}
28. Bg2 {[%clk 0:01:30.2]} 28... Bg3+ {[%clk 0:00:46.9]} 29. Kg1 {[%clk
0:01:28.4]} 29... Qe3+ {[%clk 0:00:38.4]} 30. Kh1 {[%clk 0:01:26.9]} 30... Re6
{[%clk 0:00:33.7]} 31. Bh3 {[%clk 0:01:24.8]} 31... Qf2 {[%clk 0:00:33.4]} 32.
Qg1 {[%clk 0:01:22.9]} 32... Qxf3+ {[%clk 0:00:24.4]} 33. Qg2 {[%clk 0:01:22.8]}
33... Re3 {[%clk 0:00:18.3]} 34. Qxf3 {[%clk 0:01:19.8]} 34... Rxf3 {[%clk
0:00:18.6]} 35. Kg2 {[%clk 0:01:16]} 35... Rb3 {[%clk 0:00:18.4]} 36. Nd7+
{[%clk 0:01:15.7]} 36... Kc7 {[%clk 0:00:17.7]} 37. Nxc5 {[%clk 0:01:15.9]}
37... Re3 {[%clk 0:00:16.3]} 38. Rc1 {[%clk 0:01:14.2]} 38... Kb8 {[%clk
0:00:08.7]} 39. Nd7+ {[%clk 0:01:08.4]} 39... Ka7 {[%clk 0:00:09.1]} 40. Rc8
{[%clk 0:01:08.2]} 40... Rb3 {[%clk 0:00:07.6]} 41. Nb6 {[%clk 0:01:02.5]} 41...
Bb8 {[%clk 0:00:07.7]} 42. Rc2 {[%clk 0:00:56.7]} 42... Rg3+ {[%clk 0:00:07.6]}
43. Kf2 {[%clk 0:00:49]} 43... Rxh3 {[%clk 0:00:08]} 44. Nc8+ {[%clk 0:00:49.1]}
44... Ka8 {[%clk 0:00:08.7]} 45. Nb6+ {[%clk 0:00:48.7]} 45... Ka7 {[%clk
0:00:09.4]} 46. Rc8 {[%clk 0:00:48.5]} 46... Rb3 {[%clk 0:00:07.9]} 47. Nd7
{[%clk 0:00:47.4]} 47... Bg3+ {[%clk 0:00:05.2]} 48. Kg2 {[%clk 0:00:47.1]}
48... Bd6 {[%clk 0:00:04.6]} 49. Nb6 {[%clk 0:00:43.7]} 49... Rxb2+ {[%clk
0:00:04.9]} 50. Kf3 {[%clk 0:00:43.2]} 50... Bb8 {[%clk 0:00:05.3]} 51. Nd7
{[%clk 0:00:42.4]} 51... Bd6 {[%clk 0:00:05]} 52. Nb6 {[%clk 0:00:39]} 52...
Rxb6 {[%clk 0:00:05.6]} 53. axb6+ {[%clk 0:00:38.4]} 53... Kxb6 {[%clk
0:00:06.5]} 54. Rg8 {[%clk 0:00:37.8]} 54... g6 {[%clk 0:00:06.3]} 55. Rg7
{[%clk 0:00:37.1]} 55... Bb4 {[%clk 0:00:06.6]} 56. Rxf7 {[%clk 0:00:35.4]}
56... a5 {[%clk 0:00:07.2]} 57. Ke3 {[%clk 0:00:35.5]} 57... a4 {[%clk
0:00:07.6]} 58. Kd3 {[%clk 0:00:35.6]} 58... a3 {[%clk 0:00:08.2]} 59. Kc2
{[%clk 0:00:35.5]} 59... Kb5 {[%clk 0:00:08.4]} 60. Kb3 {[%clk 0:00:35.3]} 60...
b6 {[%clk 0:00:08.6]} 61. Rxh7 {[%clk 0:00:34.7]} 61... Bd2 {[%clk 0:00:08.6]}
62. Rh3 {[%clk 0:00:32.7]} 62... Bf4 {[%clk 0:00:08.2]} 63. Rc3 {[%clk
0:00:30.8]} 63... g5 {[%clk 0:00:08.4]} 64. Kxa3 {[%clk 0:00:30.8]} 64... g4
{[%clk 0:00:08.8]} 65. Kb3 {[%clk 0:00:30.9]} 65... g3 {[%clk 0:00:09.3]} 66.
Rc2 {[%clk 0:00:31.1]} 66... Be3 {[%clk 0:00:09.1]} 67. Rg2 {[%clk 0:00:26.4]}
67... Bf2 {[%clk 0:00:09.4]} 68. Kc3 {[%clk 0:00:26.2]} 68... Ka4 {[%clk
0:00:09.9]} 69. Kd3 {[%clk 0:00:26.1]} 69... Kb3 {[%clk 0:00:10.3]} 70. Ke2
{[%clk 0:00:25.3]} 70... Kc4 {[%clk 0:00:10.7]} 71. Kf3 {[%clk 0:00:23.3]} 71...
Kxd4 {[%clk 0:00:11.1]} 72. Rxg3 {[%clk 0:00:22.6]} 72... Bxg3 {[%clk
0:00:11.3]} 0-1